fUSD/lending_fUSD_20240718
["ID","MTS","AMOUNT","RATE_DAILY","PERIOD"]
[332491813,1721267443042,-301.56,0.000141,2]
[332491814,1721267443053,-300.59,0.00014178,2]
[332491815,1721267443063,-659.520136,0.00014247,2]
[332491816,1721267443072,-50000.0,0.00014488,2]
[332491817,1721267443081,-165.03,0.00014608,2]
[332491818,1721267443091,-155.61736143,0.00014811,2]
[332491819,1721267443100,-193.05,0.00014812,2]
[332491820,1721267443109,-641.43528277,0.000149,2]
[332491821,1721267443119,-196.63805813,0.000149,2]
[332491822,1721267443128,-992.57384124,0.000149,2]
[332491823,1721267443137,-503.21330327,0.00014999,2]
[332491824,1721267443146,-4569.64175272,0.00015,2]
[332491825,1721267443156,-3972.74443133,0.00015,2]
[332491826,1721267443165,-304.45895077,0.00015,2]
[332491827,1721267443174,-14703.99947175,0.00015,2]
[332491828,1721267443237,-1762.89562198,0.00015,2]
[332491856,1721267445883,-650.98245136,0.00013721,2]
[332491857,1721267445894,-5014.01754864,0.00013721,2]
[332491858,1721267445903,-1159.68365136,0.00015,2]
[332491859,1721267445917,-6304.3395,0.00015,2]
[332491860,1721267446110,-13204.57923058,0.00015,2]
[332491874,1721268531492,165.03,0.00010824,2]
[332491876,1721268634183,-155.0,0.00011155,2]
[332491877,1721268634193,-274.8742519,0.00011738,2]
[332491878,1721268634204,-441.08533386,0.00011738,2]
[332491879,1721268634216,-48.95041424,0.00011738,2]
[332491880,1721268634225,-251.03958576,0.00012848,2]
[332491881,1721268634237,-324.09119857,0.00012848,2]
[332491882,1721268634246,-145.39185908,0.00012848,2]
[332491883,1721268634258,-154.60814092,0.00012848,2]
[332491884,1721268634267,-6411.42795502,0.00012849,2]
[332491885,1721268634279,-5888.14399479,0.00012849,2]
[332491886,1721268634290,-2403.71005019,0.00012849,2]
[332491887,1721268634299,-7013.35763557,0.00012849,2]
[332491888,1721268634311,-85670.91627422,0.00012849,2]
[332491889,1721268634323,-852.2841565,0.00012849,2]
[332491890,1721268634334,-3322.81703371,0.00012849,2]
[332491891,1721268634344,-508.11318329,0.00012949,2]
[332491892,1721268634353,-155.19457369,0.00012999,2]
[332491893,1721268634363,-550.0,0.00013,2]
[332491894,1721268634373,-347.04036643,0.0001312,2]
[332491895,1721268634382,-347.04036643,0.0001312,2]
[332491896,1721268634392,-180.77,0.00013351,2]
[332491897,1721268634402,-250.0,0.00013496,2]
[332491898,1721268634412,-470.27,0.0001359,2]
[332491899,1721268634422,-504.38387093,0.000138,2]
[332491900,1721268634433,-379.65177583,0.00013846,2]
[332491901,1721268634443,-338.7,0.00013847,2]
[332491902,1721268634452,-785.4,0.0001388,3]
[332491903,1721268634461,-4873.39422969,0.0001389,2]
[332491904,1721268634544,-1122.42549029,0.0001389,2]
[332491905,1721268634558,-789.65,0.0001389,2]
[332491907,1721268637983,-1466.694531,0.00012999,2]
[332491908,1721268637994,-1598.08034113,0.00012999,2]
[332491909,1721268638004,-165.92746,0.00013846,2]
[332491910,1721268638013,-41389.60238002,0.0001389,2]
[332491912,1721268638023,-438.874332,0.00013899,2]
[332491913,1721268638032,-2965.944,0.000139,2]
[332491914,1721268638041,-725.026917,0.00013973,2]
[332491915,1721268638050,-484.29114597,0.00013999,2]
[332491916,1721268638060,-300.0,0.00014,2]
[332491917,1721268638069,-155.20635373,0.00014001,2]
[332491918,1721268638078,-764.91,0.00014002,2]
[332491919,1721268638087,-276.76557655,0.0001409,2]
[332491920,1721268638096,-884.17,0.00014199,2]
[332491921,1721268638105,-725.026917,0.00014795,2]
[332491922,1721268638115,-250.0,0.00014849,2]
[332491923,1721268638124,-155.0,0.00014849,2]
[332491924,1721268638133,-1825.63097981,0.0001485,2]
[332491925,1721268638142,-500.0,0.0001488,2]
[332491926,1721268638151,-200.0,0.0001488,2]
[332491927,1721268638160,-38322.0,0.00014882,2]
[332491928,1721268638169,-1677.825,0.00014882,2]
[332491929,1721268638179,-5117.0,0.00014882,2]
[332491930,1721268638188,-5823.0,0.00014882,2]
[332491931,1721268638197,-1207.101,0.00014882,2]
[332491932,1721268638206,-169.69998369,0.000149,2]
[332491933,1721268638216,-259.4342732,0.000149,2]
[332491934,1721268638225,-992.57384124,0.000149,2]
[332491935,1721268638236,-248.62022026,0.000149,2]
[332491936,1721268638245,-22355.24200729,0.0001499,2]
[332491937,1721268638257,-3160.1999999,0.0001499,2]
[332491938,1721268638268,-2479.21250672,0.0001499,2]
[332491939,1721268638279,-3403.9531416,0.0001499,2]
[332491940,1721268638416,-141592.32039249,0.0001499,2]
[332491941,1721268638426,-184.15456122,0.0001499,2]
[332491942,1721268638435,-51013.35951382,0.00015,2]
[332491943,1721268638446,-3000.0,0.00015,2]
[332491944,1721268638457,-567.901,0.00015,2]
[332491945,1721268638468,-1200.04944682,0.00015,2]
[332491954,1721268640303,-3573.22846098,0.00015,2]
[332491955,1721268640315,-280.17187485,0.00015,2]
[332491956,1721268640325,-344.51691334,0.00015,2]
[332492047,1721268643203,-431.70678588,0.0001312,2]
[332492048,1721268643212,-1775.99908526,0.00015,2]
[332492050,1721268643223,-99454.6996691,0.00015,2]
[332492052,1721268643235,-336.718,0.00015,2]
[332492054,1721268643246,-1055.08480351,0.00015,2]
[332492112,1721268646241,-5618.06946775,0.00015,2]
[332492113,1721268646252,-8021.15857371,0.00015,2]
[332492114,1721268646264,-1250.0945842,0.00015,2]
[332492115,1721268646274,-2128.84910156,0.00015,2]
[332492116,1721268646286,-1002.66863856,0.00015,2]
[332492117,1721268646296,-607.92115389,0.00015,2]
[332492119,1721268646441,-2522.7804,0.00015,2]
[332492267,1721269832623,-300.0,0.00011488,2]
[332492268,1721269832632,-379.65177583,0.00011488,2]
[332492269,1721269832642,-55.83955045,0.00011488,2]
[332492270,1721269832654,-430.76341797,0.00011488,2]
[332492271,1721269832663,-15.40682415,0.00011488,2]
[332492272,1721269832674,-414.96820624,0.00011488,2]
[332492273,1721269832685,-1.33175549,0.00011488,2]
[332492274,1721269832698,-865.43107121,0.00011489,2]
[332492275,1721269832710,-134.28583406,0.00011489,2]
[332492276,1721269832720,-300.0,0.00011489,2]
[332492277,1721269832729,-104.59416594,0.00011489,2]
[332492278,1721269832759,-347.40099992,0.00011489,2]
[332492279,1721269832771,-2486.89270247,0.00011489,2]
[332492280,1721269832782,-765.07361177,0.00011489,2]
[332492281,1721269832791,-155.19664631,0.00011489,2]
[332492282,1721269832801,-137.02974192,0.0001149,2]
[332492283,1721269832821,-396.96579674,0.0001149,2]
[332492284,1721269832830,-155.24093768,0.0001149,2]
[332492285,1721269832839,-250.0,0.0001178,2]
[332492286,1721269832849,-719.8,0.00011781,2]
[332492287,1721269832858,-420.0,0.00012618,2]
[332492288,1721269832867,-550.0,0.00013,2]
[332492289,1721269832877,-356.61,0.00013333,2]
[332492290,1721269832886,-1389.05,0.00013536,2]
[332492291,1721269832895,-270.96,0.00013538,2]
[332492292,1721269832905,-587.0,0.00013859,2]
[332492293,1721269832915,-277.14873579,0.00013898,2]
[332492294,1721269832925,-453.9454839,0.00013945,2]
[332492295,1721269832936,-376.21,0.00013985,2]
[332492296,1721269832950,-155.61736143,0.00013989,2]
[332492297,1721269832959,-1371.00861591,0.0001399,2]
[332492298,1721269832970,-441.58306765,0.0001399,2]
[332492299,1721269832981,-566.55211337,0.0001399,2]
[332492300,1721269832996,-505.43097376,0.0001399,2]
[332492301,1721269833007,-577.50775,0.0001399,2]
[332492305,1721269838344,-677.98864106,0.0001399,2]
[332492306,1721269838498,-6491.85,0.0001399,2]
[332492307,1721269838511,-1022.29096018,0.0001399,2]
[332492308,1721269838523,-2691.51302511,0.0001399,2]
[332492309,1721269838535,-1872.6568585,0.0001399,2]
[332492310,1721269838547,-125373.93838646,0.0001399,2]
[332492311,1721269838557,-188.15295362,0.0001399,2]
[332492312,1721269838567,-67227.74312745,0.00014,2]
[332492313,1721269838648,-11491.499373,0.00014,2]
[332492314,1721269838660,-610.09299413,0.00014,2]
[332492315,1721269838671,-799.31236535,0.00014,2]
[332492316,1721269838683,-392.52338123,0.00014,2]
[332492317,1721269838694,-139770.37077465,0.00014,2]
[332492318,1721269838836,-2440.56888441,0.00014,2]
[332492336,1721269840333,-130373.38553093,0.00014,2]
[332492337,1721269840345,-522.809,0.00014,2]
[332492338,1721269840357,-324225.37131012,0.00014,2]
[332492339,1721269840368,-1458.80353503,0.00014,2]
[332492340,1721269840459,-568.13080662,0.00014,2]
[332492341,1721269840471,-369.70134775,0.00014,2]
[332492343,1721269843305,-158.97684366,0.0001389,2]
[332492344,1721269843315,-5648.46092338,0.00014,2]
[332492345,1721269843325,-1408.02620954,0.00014,2]
[332492346,1721269843336,-652.82532851,0.00014,2]
[332492381,1721269843672,-34622.98478297,0.00014,2]
[332492384,1721269843683,-14901.011465,0.00014,2]
[332492389,1721269843722,-278.90148228,0.00014,2]
[332492392,1721269843738,-18957.30321431,0.00014,2]
[332492394,1721269843749,-7954.26525268,0.00014,2]
[332492399,1721269843785,-3188.2248544,0.00014,2]
[332492412,1721269843902,-4921.98726239,0.00014,2]
[332492433,1721269844114,-1120.0670913,0.00014,2]
[332492435,1721269844126,-6978.5,0.00014,2]
[332492437,1721269844137,-676.09482207,0.00014,2]
[332492439,1721269844149,-628.34169592,0.00014,2]
[332492441,1721269844160,-793.22381522,0.00014,2]
[332492443,1721269844171,-4541.71748,0.00014,2]
[332492445,1721269844185,-514.05979093,0.00014,2]
[332492609,1721269846214,-3000.0,0.00014,2]
[332492626,1721269846382,-74024.90584167,0.00014,2]
[332492629,1721269846395,-1023.445605,0.00014,2]
[332492631,1721269846406,-1232.34172291,0.00014,2]
[332492633,1721269846416,-4815.94927174,0.00014,2]
[332492651,1721269846574,-6097.53703991,0.00014,2]
[332492653,1721269846586,-1229.2992,0.00014,2]
[332492655,1721269846598,-489.5109991,0.00014,2]
[332492656,1721269846609,-15451.33542455,0.00014,2]
[332492657,1721269846620,-8255.88641191,0.00014,2]
[332492658,1721269846631,-300.0,0.00014,2]
[332492727,1721271032584,-759.04945973,0.0001322,2]
[332492728,1721271032594,-243.24440927,0.00013221,2]
[332492729,1721271032606,-275.3094893,0.00013221,2]
[332492730,1721271032619,-610.58204072,0.00013221,2]
[332492731,1721271032799,-115.98002362,0.00013221,2]
[332492732,1721271032809,-187.03,0.00013222,2]
[332492733,1721271032818,-250.0,0.00013239,2]
[332492734,1721271032828,-442.86543514,0.00013437,2]
[332492735,1721271032840,-336.22,0.00013437,2]
[332492737,1721271038532,-1879.79073718,0.00013437,2]
[332492739,1721271038548,-435.09366157,0.00013437,2]
[332492749,1721271038852,-1257.05871507,0.00013437,2]
[332492750,1721271038861,-237.28,0.00013437,2]
[332492751,1721271038871,-408.31,0.00013603,2]
[332492752,1721271038880,-263.29819219,0.00013695,2]
[332492753,1721271038889,-157.92524855,0.00013698,2]
[332492754,1721271038899,-1240.83,0.00013699,5]
[332492755,1721271038913,-150.0,0.00013726,2]
[332492756,1721271038923,-499.99,0.00013799,2]
[332492757,1721271038932,-901.842241,0.00013819,2]
[332492758,1721271038941,-553.07396753,0.00013889,2]
[332492759,1721271038952,-3293.5165576,0.0001389,2]
[332492760,1721271038962,-11427.3276,0.000139,2]
[332492761,1721271038972,-192.3693,0.000139,2]
[332492762,1721271038981,-16254.909,0.000139,2]
[332492763,1721271038990,-30578.16525913,0.000139,2]
[332492764,1721271039002,-366.50388901,0.000139,2]
[332492765,1721271039014,-591.34008997,0.000139,2]
[332492775,1721271040644,-2002.83506406,0.000139,2]
[332492776,1721271040842,-311.6,0.000139,2]
[332492777,1721271040855,-292.73680835,0.000139,2]
[332492787,1721271044126,-1372.63689556,0.000139,2]
[332492788,1721271046575,-1128.26075841,0.000139,2]
[332492789,1721271046586,-531.87438483,0.000139,2]
[332492790,1721271046771,-2766.30465068,0.000139,2]
[332492791,1721271046781,-1000.0,0.000139,2]
[332492792,1721271046791,-200.0,0.000139,2]
[332492793,1721271046801,-150.99,0.000139,2]
[332492794,1721271046810,-176.73050565,0.000139,2]
[332492795,1721271046820,-408.55093551,0.000139,2]
[332492796,1721271046830,-158.97684361,0.000139,2]
[332492797,1721271046839,-1875.57236279,0.00013952,2]
[332492798,1721271046848,-644.27,0.00013953,2]
[332492799,1721271046858,-692.038129,0.00013973,2]
[332492800,1721271046867,-155.37158299,0.00013989,2]
[332492801,1721271046877,-202.66135483,0.00013989,3]
[332492802,1721271046887,-188.15295362,0.0001399,2]
[332492803,1721271046896,-1325.10523291,0.00013999,5]
[332492804,1721271046905,-83072.38476054,0.00014,2]
[332492805,1721271046917,-213173.13287826,0.00014,2]
[332492806,1721271046928,-97616.63009427,0.00014,2]
[332492807,1721271046939,-1000.18527722,0.00014,2]
[332492808,1721271046952,-4107.44016929,0.00014,2]
[332492809,1721271046964,-4481.26464344,0.00014,2]
[332492810,1721271046975,-5891.39520654,0.00014,2]
[332492818,1721271698625,157.071812,0.00024,63]
[332492819,1721271722097,156.071812,0.00024,64]
[332492820,1721272107746,1000.0,0.00025008,120]
[332492828,1721272231675,-599.45308107,0.00011146,2]
[332492829,1721272231684,-358.95210473,0.00011146,2]
[332492830,1721272231696,-104.73145427,0.00011147,2]
[332492831,1721272231923,-648.97854573,0.00011147,2]
[332492832,1721272231933,-901.842241,0.00012935,2]
[332492833,1721272231942,-550.0,0.00013,2]
[332492834,1721272231952,-1257.05871507,0.00013,2]
[332492835,1721272231961,-159.73775654,0.00013009,2]
[332492836,1721272231972,-250.0,0.0001301,2]
[332492837,1721272231982,-300.0,0.00013028,2]
[332492838,1721272231991,-750.0,0.00013028,2]
[332492839,1721272232001,-364.95974836,0.00013028,2]
[332492840,1721272232011,-4182.23,0.00013029,2]
[332492841,1721272232020,-250.0,0.00013192,2]
[332492842,1721272232030,-237.28,0.00013211,2]
[332492843,1721272232039,-608.31,0.00013284,2]
[332492844,1721272232048,-4951.67712303,0.00013354,2]
[332492845,1721272232059,-2608.53287697,0.00013354,2]
[332492846,1721272232069,-50.62622996,0.00013355,2]
[332492848,1721272238054,-246.13377004,0.00013355,2]
[332492849,1721272238064,-1000.0,0.00013393,2]
[332492850,1721272238074,-383.83214573,0.0001341,2]
[332492851,1721272238213,-116.15785427,0.0001341,2]
[332492852,1721272238223,-753.71,0.00013411,2]
[332492853,1721272238233,-158.65692508,0.00013436,2]
[332492854,1721272238243,-66.84293186,0.00013699,5]
[332492855,1721272238256,-1173.98706814,0.00013699,5]
[332492856,1721272238266,-419.72,0.000137,2]
[332492857,1721272238275,-247.05284336,0.000138,2]
[332492858,1721272238286,-748.44415288,0.000138,2]
[332492859,1721272238295,-3293.5165576,0.0001389,2]
[332492860,1721272238305,-367.69584195,0.00013899,2]
[332492861,1721272238315,-544.5005,0.000139,2]
[332492862,1721272238325,-3310.1683,0.000139,2]
[332492863,1721272238334,-3637.98436222,0.000139,2]
[332492864,1721272238346,-2557.40543778,0.000139,2]
[332492865,1721272238357,-11427.3276,0.000139,2]
[332492866,1721272238366,-45159.7058,0.000139,2]
[332492867,1721272238376,-648.7378,0.000139,2]
[332492868,1721272238386,-401.5524,0.000139,2]
[332492869,1721272238396,-8152.2878,0.000139,2]
[332492870,1721272238405,-158.97684361,0.000139,2]
[332492871,1721272238415,-995.49699624,0.000139,2]
[332492872,1721272238424,-44181.99075236,0.00014,2]
[332492873,1721272238434,-300.0,0.00014,2]
[332492874,1721272238443,-2000.0,0.00014,2]
[332492875,1721272238452,-200.0,0.00014,2]
[332492876,1721272238462,-2000.0,0.00014,2]
[332492877,1721272238471,-200.0,0.00014,2]
[332492878,1721272238481,-2958.90171,0.00014,2]
[332492879,1721272238490,-311.21574491,0.00014,2]
[332492880,1721272238500,-842.56,0.00014055,2]
[332492881,1721272238509,-431.70678588,0.00014099,2]
[332492882,1721272238518,-1344.63,0.000141,2]
[332492883,1721272238589,-2000.0,0.0001414,2]
[332492884,1721272238599,-200.0,0.0001414,2]
[332492885,1721272238608,-2000.0,0.0001414,2]
[332492886,1721272238618,-200.0,0.0001414,2]
[332492887,1721272238628,-2000.0,0.00014281,2]
[332492888,1721272238637,-200.0,0.00014281,2]
[332492889,1721272238646,-2000.0,0.00014281,2]
[332492890,1721272238655,-200.0,0.00014281,2]
[332492891,1721272238664,-420.0,0.00014287,2]
[332492892,1721272238674,-2000.0,0.00014424,2]
[332492893,1721272238683,-200.0,0.00014424,2]
[332492894,1721272238693,-2000.0,0.00014424,2]
[332492895,1721272238703,-200.0,0.00014424,2]
[332492896,1721272238712,-200.0,0.00014568,2]
[332492897,1721272238721,-2000.0,0.00014568,2]
[332492898,1721272238731,-759.04945973,0.00014599,2]
[332492899,1721272238740,-1404.0,0.000146,2]
[332492900,1721272238750,-263.29819219,0.00014697,2]
[332492901,1721272238759,-306.49174126,0.00014765,2]
[332492902,1721272238768,-535.54,0.00014813,2]
[332492903,1721272238778,-500.0,0.0001488,2]
[332492904,1721272238787,-200.0,0.0001488,2]
[332492905,1721272238796,-553.07396753,0.00014883,2]
[332492906,1721272238805,-155.65727764,0.00014883,2]
[332492907,1721272238815,-1254.99718635,0.00014883,2]
[332492908,1721272238824,-306.02874822,0.00014899,2]
[332492909,1721272238833,-169.24846796,0.000149,2]
[332492910,1721272238843,-166.0905149,0.000149,2]
[332492911,1721272238852,-174.42889109,0.000149,2]
[332492912,1721272238861,-211.12054678,0.000149,2]
[332492913,1721272238871,-211.12054677,0.000149,2]
[332492914,1721272238880,-211.12054677,0.000149,2]
[332492915,1721272238891,-234.47855749,0.000149,2]
[332492916,1721272238900,-165.7468135,0.000149,2]
[332492917,1721272238909,-641.43528277,0.000149,2]
[332492918,1721272238918,-10000.0,0.00014932,2]
[332492919,1721272238931,-608.31,0.00014945,2]
[332492920,1721272238941,-808.22018546,0.00014955,2]
[332492921,1721272238950,-157.92524855,0.00014956,2]
[332492922,1721272238959,-304.93530355,0.00014957,2]
[332492923,1721272238971,-32395.02131824,0.0001498,2]
[332492924,1721272238983,-461.3160187,0.0001498,2]
[332492925,1721272238994,-4162.55185861,0.0001498,2]
[332492927,1721272239768,-155.94177456,0.00014696,2]
[332492928,1721272239778,-438.42223365,0.00014882,2]
[332492929,1721272239787,-40.84109512,0.00014932,2]
[332492930,1721272239799,-302.85004585,0.00014932,2]
[332492931,1721272240125,-1477.64369737,0.00014932,2]
[332492934,1721272240137,-7597.40020862,0.00014932,2]
[332492936,1721272240149,-312.60966571,0.00014932,2]
[332492938,1721272240161,-268.65528733,0.00014932,2]
[332492940,1721272240171,-1633.53928348,0.00014932,2]
[332492942,1721272240180,-42586.07856255,0.0001498,2]
[332492944,1721272240190,-20766.5133282,0.00014981,2]
[332492946,1721272240199,-23594.31779108,0.00014983,2]
[332493057,1721272242960,-547.50601612,0.000149,2]
[332493089,1721272245732,-759.04945973,0.00014567,2]
[332493090,1721272245742,-5525.0,0.0001485,2]
[332493091,1721272245752,-114.20987804,0.000149,2]
[332493092,1721272245763,-57.85797703,0.00014954,2]
[332493093,1721272245775,-247.07732652,0.00014954,2]
[332493094,1721272245784,-530.54780873,0.00014982,2]
[332493095,1721272245794,-307.01292101,0.00014982,2]
[332493096,1721272245806,-178.55009373,0.00014982,2]
[332493097,1721272245816,-5570.12620835,0.00014983,2]
[332493098,1721272245827,-1250.0945842,0.00014983,2]
[332493099,1721272245838,-2128.84910156,0.00014983,2]
[332493100,1721272245850,-1002.66863856,0.00014983,2]
[332493106,1721272802025,24685.0,0.00025008,120]
[332493125,1721273431913,-337.21932,0.00012024,2]
[332493126,1721273432287,-304.26191047,0.00012024,2]
[332493127,1721273432299,-69.89876953,0.00012024,2]
[332493128,1721273432308,-550.0,0.00013,2]
[332493129,1721273432317,-750.07912915,0.00013841,2]
[332493130,1721273432328,-463.7839458,0.00013841,2]
[332493147,1721273437999,-1032.47002505,0.00013841,2]
[332493148,1721273438009,-237.4,0.00013867,2]
[332493149,1721273438018,-800.0,0.00013883,2]
[332493150,1721273438027,-759.04945973,0.00013899,2]
[332493151,1721273438037,-188.27,0.00013911,2]
[332493152,1721273438047,-686.64,0.00013928,2]
[332493153,1721273438057,-329.37,0.00013932,2]
[332493154,1721273438067,-11969.02,0.00013941,2]
[332493155,1721273438076,-711.38,0.00014288,2]
[332493156,1721273438085,-4642.67,0.00014329,2]
[332493157,1721273438095,-364.95974836,0.00014329,2]
[332493158,1721273438106,-10000.0,0.0001433,2]
[332493159,1721273438116,-157.92524855,0.00014399,2]
[332493160,1721273438125,-599.45308107,0.00014399,2]
[332493161,1721273438135,-150.51,0.000144,2]
[332493162,1721273438145,-150.0,0.000144,2]
[332493163,1721273438155,-1030.1,0.000144,2]
[332493164,1721273438164,-150.0,0.000144,2]
[332493165,1721273438174,-150.0,0.000144,2]
[332493166,1721273438183,-355.44,0.000144,2]
[332493167,1721273438192,-165.14,0.000144,2]
[332493168,1721273438202,-151.43,0.000144,2]
[332493169,1721273438211,-151.67,0.000144,2]
[332493170,1721273438220,-360.1,0.000144,2]
[332493171,1721273438230,-167.0,0.000144,2]
[332493172,1721273438240,-150.68,0.000144,2]
[332493173,1721273438249,-150.0,0.000146,2]
[332493174,1721273438259,-164.86,0.000146,2]
[332493175,1721273438269,-734.71,0.000146,2]
[332493176,1721273438278,-6420.75,0.000146,2]
[332493177,1721273438288,-2001.76,0.000146,2]
[332493178,1721273438301,-499.99,0.000146,2]
[332493179,1721273438311,-4546.0184,0.00014793,2]
[332493180,1721273438321,-250.0,0.00014799,2]
[332493181,1721273438331,-150.0,0.000148,2]
[332493182,1721273438344,-87.10820395,0.000148,2]
[332493183,1721273438356,-62.89179605,0.000148,2]
[332493184,1721273438365,-150.0,0.000148,2]
[332493185,1721273438375,-165.14,0.000148,2]
[332493186,1721273438386,-355.44,0.000148,2]
[332493187,1721273438396,-355.04,0.000148,2]
[332493188,1721273438405,-5910.23612742,0.00014832,2]
[332493189,1721273438418,-9284.18896675,0.00014832,2]
[332493190,1721273438467,-598.13236488,0.00014832,2]
[332493191,1721273438479,-649.3947131,0.00014832,2]
[332493193,1721273440596,-586.53552664,0.0001433,2]
[332493196,1721273440608,-250.0,0.00014792,2]
[332493197,1721273440616,-618.37099949,0.00014832,2]
[332493200,1721273440627,-1031.89691334,0.00014832,2]
[332493285,1721273443194,-4793.85226185,0.00014832,2]
[332493287,1721273446177,-5727.54376423,0.00014832,2]
[332493288,1721273446188,-1964.54918894,0.00014832,2]
[332493289,1721273446196,-307.93308269,0.00014849,2]
[332493290,1721273446207,-500.28710277,0.00014849,2]
[332493291,1721273446215,-1171.57250908,0.00014879,2]
[332493292,1721273446224,-500.0,0.00014879,2]
[332493293,1721273446234,-200.0,0.00014879,2]
[332493294,1721273446243,-263.29819219,0.00014879,2]
[332493295,1721273446252,-155.65727764,0.00014879,2]
[332493296,1721273446262,-105.73705942,0.0001488,2]
[332493297,1721273446273,-394.26294058,0.0001488,2]
[332493298,1721273446282,-500.0,0.0001488,2]
[332493299,1721273446291,-192.88982678,0.0001488,2]
[332493300,1721273446301,-307.11017322,0.0001488,2]
[332493301,1721273446309,-200.0,0.0001488,2]
[332493302,1721273446318,-158.97684361,0.00014889,2]
[332493303,1721273446326,-306.02874822,0.00014889,2]
[332493304,1721273446335,-4465.4778,0.0001489,2]
[332493305,1721273446347,-169.24846796,0.000149,2]
[332493306,1721273446356,-166.0905149,0.000149,2]
[332493307,1721273446364,-211.12054678,0.000149,2]
[332493308,1721273446373,-174.42889109,0.000149,2]
[332493309,1721273446382,-211.12054677,0.000149,2]
[332493310,1721273446392,-211.12054677,0.000149,2]
[332493311,1721273446401,-165.7468135,0.000149,2]
[332493312,1721273446411,-234.47855749,0.000149,2]
[332493313,1721273446420,-334.41349343,0.000149,2]
[332493314,1721273446463,-106.73043601,0.000149,2]
[332493315,1721273446471,-293.03052447,0.00014959,2]
[332493316,1721273446480,-304.93530355,0.00014959,2]
[332493317,1721273446488,-366.83842223,0.00014959,2]
[332493318,1721273446497,-155.0,0.00014959,2]
[332493320,1721273446505,-1195.08005924,0.0001496,2]
[332493321,1721273446514,-1195.08005924,0.0001496,2]
[332493323,1721273446522,-525.18477963,0.00014978,2]
[332493324,1721273446530,-24255.1841255,0.00014979,2]
[332493326,1721273446538,-1247.78250732,0.00014982,2]
[332493327,1721273446547,-155.0,0.00014982,2]
[332493328,1721273446555,-2000.0,0.00014983,2]
[332493329,1721273446564,-200.0,0.00014983,2]
[332493330,1721273446572,-2958.90171,0.00014983,2]
[332493331,1721273446580,-250.0,0.00014989,2]
[332493332,1721273446589,-155.12936247,0.00014989,2]
[332493333,1721273446597,-1626.15009733,0.0001499,2]
[332493334,1721273446605,-38773.60073144,0.0001499,2]
[332493335,1721273806022,-686.31,0.00012401,2]
[332493336,1721273806052,-1586.34380773,0.00013875,2]
[332493337,1721273806082,-749.32,0.00013974,2]
[332493338,1721273806114,-2019.76,0.00014248,2]
[332493339,1721273806144,-4066.9307273,0.00014248,2]
[332493340,1721273806176,-686.31,0.00014665,2]
[332493341,1721273806206,-304.93530355,0.00014849,2]
[332493342,1721273806236,-431.70678588,0.00014849,2]
[332493343,1721273806262,-686.31,0.0001485,2]
[332493344,1721273806278,-1586.34380773,0.0001485,2]
[332493345,1721273806289,-749.32,0.0001485,2]
[332493346,1721273806311,-2019.76,0.0001485,2]
[332493347,1721273806329,-4066.9307273,0.0001485,2]
[332493348,1721273806341,-686.31,0.0001485,2]
[332493349,1721273806360,-304.93530355,0.0001485,2]
[332493350,1721273806373,-431.70678588,0.0001485,2]
[332493351,1721273806395,-8654.76675108,0.0001485,2]
[332493352,1721273842074,-548.76,0.00014076,2]
[332493353,1721273842106,-351.84655319,0.00014776,2]
[332493354,1721273842138,-1404.0,0.000148,2]
[332493355,1721273842171,-300.0,0.00014849,2]
[332493356,1721273842191,-548.76,0.00014849,2]
[332493357,1721273842208,-351.84655319,0.00014849,2]
[332493358,1721273842232,-1404.0,0.00014849,2]
[332493359,1721273842250,-300.0,0.00014849,2]
[332493360,1721273842266,-3210.78689362,0.00014849,2]
[332493361,1721273864766,-3492.0,0.00014849,2]
[332493362,1721274365781,200.0,0.00014775,30]
[332493363,1721274365814,200.0,0.00014775,30]